[Event "Titled Tuesday Blitz January 11 2022"]
[White "Shimanov, Aleksandr"]
[Black "FGHSMN"]
[WhiteFideId "4198603"]
[WhiteElo "2636"]
[BlackElo "2765"]
[Result "1-0"]
[Round "10"]
[TimeControl "180+1"]
[Date "2022.01.11"]
[WhiteClock "0:00:13"]
[BlackClock "0:00:09"]

1. d4 {[%clk 0:03:00]}  Nf6 {[%clk 0:02:59]} 2. Nf3 {[%clk 0:03:01]}  e6 {[%clk 0:02:58]} 3. Bf4 {[%clk 0:03:00]}  c5 {[%clk 0:02:56]} 4. e3 {[%clk 0:03:00]}  d5 {[%clk 0:02:55]} 5. Nbd2 {[%clk 0:03:00]}  Nc6 {[%clk 0:02:55]} 6. c3 {[%clk 0:02:59]}  Bd6 {[%clk 0:02:50]} 7. Bg3 {[%clk 0:02:59]}  Qe7 {[%clk 0:02:50]} 8. Ne5 {[%clk 0:02:57]}  Bxe5 {[%clk 0:02:50]} 9. dxe5 {[%clk 0:02:57]}  Nd7 {[%clk 0:02:50]} 10. Nf3 {[%clk 0:02:57]}  b6 {[%clk 0:02:49]} 11. Bd3 {[%clk 0:02:56]}  Bb7 {[%clk 0:02:49]} 12. a4 {[%clk 0:02:53]}  h5 {[%clk 0:02:47]} 13. Bh4 {[%clk 0:02:49]}  Qf8 {[%clk 0:02:47]} 14. Bb5 {[%clk 0:02:44]}  a6 {[%clk 0:02:44]} 15. Bxc6 {[%clk 0:02:44]}  Bxc6 {[%clk 0:02:45]} 16. O-O {[%clk 0:02:44]}  f6 {[%clk 0:02:39]} 17. exf6 {[%clk 0:02:40]}  gxf6 {[%clk 0:02:40]} 18. a5 {[%clk 0:02:40]}  b5 {[%clk 0:02:38]} 19. b4 {[%clk 0:02:39]}  e5 {[%clk 0:02:37]} 20. Qc2 {[%clk 0:02:25]}  c4 {[%clk 0:02:35]} 21. Nd2 {[%clk 0:02:20]}  Qg7 {[%clk 0:02:30]} 22. g3 {[%clk 0:02:17]}  Qg4 {[%clk 0:02:27]} 23. f3 {[%clk 0:02:10]}  Qe6 {[%clk 0:02:27]} 24. f4 {[%clk 0:02:08]}  e4 {[%clk 0:02:16]} 25. Kg2 {[%clk 0:01:56]}  f5 {[%clk 0:02:16]} 26. Rfd1 {[%clk 0:01:35]}  Qg6 {[%clk 0:02:13]} 27. Nf1 {[%clk 0:01:33]}  Nf8 {[%clk 0:02:13]} 28. Nd2 {[%clk 0:01:24]}  Ne6 {[%clk 0:02:12]} 29. Nb1 {[%clk 0:01:21]}  Qg4 {[%clk 0:01:58]} 30. Rf1 {[%clk 0:00:44]}  Rg8 {[%clk 0:01:56]} 31. Kh1 {[%clk 0:00:43]}  Ra7 {[%clk 0:01:49]} 32. Qg2 {[%clk 0:00:37]}  Rd7 {[%clk 0:01:47]} 33. Na3 {[%clk 0:00:35]}  Rdg7 {[%clk 0:01:38]} 34. Rf2 {[%clk 0:00:24]}  Kd7 {[%clk 0:01:24]} 35. Nc2 {[%clk 0:00:24]}  Kc7 {[%clk 0:01:22]} 36. Rd2 {[%clk 0:00:23]}  Kb7 {[%clk 0:01:18]} 37. Rad1 {[%clk 0:00:23]}  Rd7 {[%clk 0:01:17]} 38. h3 {[%clk 0:00:21]}  Qg6 {[%clk 0:01:13]} 39. Kh2 {[%clk 0:00:21]}  Qf7 {[%clk 0:01:11]} 40. Qe2 {[%clk 0:00:21]}  Nf8 {[%clk 0:01:05]} 41. Nd4 {[%clk 0:00:19]}  Ne6 {[%clk 0:01:02]} 42. Nxe6 {[%clk 0:00:16]}  Qxe6 {[%clk 0:01:02]} 43. Qxh5 {[%clk 0:00:17]}  Rdg7 {[%clk 0:00:54]} 44. Rg1 {[%clk 0:00:13]}  Be8 {[%clk 0:00:53]} 45. Qd1 {[%clk 0:00:12]}  Bf7 {[%clk 0:00:50]} 46. Rdg2 {[%clk 0:00:11]}  Rh7 {[%clk 0:00:49]} 47. Qd4 {[%clk 0:00:11]}  Bh5 {[%clk 0:00:45]} 48. Rd2 {[%clk 0:00:09]}  Rd7 {[%clk 0:00:42]} 49. Bg5 {[%clk 0:00:07]}  Bf3 {[%clk 0:00:41]} 50. g4 {[%clk 0:00:07]}  fxg4 {[%clk 0:00:41]} 51. h4 {[%clk 0:00:08]}  Rg6 {[%clk 0:00:32]} 52. Qe5 {[%clk 0:00:04]}  Qxe5 {[%clk 0:00:26]} 53. fxe5 {[%clk 0:00:05]}  Kc6 {[%clk 0:00:26]} 54. Kg3 {[%clk 0:00:05]}  Rh7 {[%clk 0:00:25]} 55. Bf6 {[%clk 0:00:05]}  Rg8 {[%clk 0:00:22]} 56. Rd4 {[%clk 0:00:05]}  Re8 {[%clk 0:00:20]} 57. Rf1 {[%clk 0:00:06]}  Re6 {[%clk 0:00:18]} 58. Rf2 {[%clk 0:00:06]}  Rh5 {[%clk 0:00:10]} 59. Rfd2 {[%clk 0:00:06]}  Rf5 {[%clk 0:00:11]} 60. Rxd5 {[%clk 0:00:05]}  Rexf6 {[%clk 0:00:11]} 61. Rc5+ {[%clk 0:00:02]}  Kb7 {[%clk 0:00:12]} 62. exf6 {[%clk 0:00:03]}  Rxf6 {[%clk 0:00:12]} 63. Re5 {[%clk 0:00:04]}  Kc6 {[%clk 0:00:08]} 64. Rf2 {[%clk 0:00:02]}  Rd6 {[%clk 0:00:07]} 65. h5 {[%clk 0:00:03]}  Rd1 {[%clk 0:00:06]} 66. h6 {[%clk 0:00:03]}  Rg1+ {[%clk 0:00:06]} 67. Kf4 {[%clk 0:00:03]}  Rh1 {[%clk 0:00:07]} 68. Kg5 {[%clk 0:00:03]}  g3 {[%clk 0:00:08]} 69. Rd2 {[%clk 0:00:04]}  g2 {[%clk 0:00:08]} 70. Re6+ {[%clk 0:00:05]}  Kc7 {[%clk 0:00:08]} 71. Rxg2 {[%clk 0:00:05]}  Bxg2 {[%clk 0:00:07]} 72. Kg6 {[%clk 0:00:06]}  Rg1 {[%clk 0:00:03]} 73. Kf7 {[%clk 0:00:05]}  Rh1 {[%clk 0:00:03]} 74. Kg7 {[%clk 0:00:05]}  Bh3 {[%clk 0:00:03]} 75. Rg6 {[%clk 0:00:05]}  Bf5 {[%clk 0:00:03]} 76. Rg5 {[%clk 0:00:06]}  Rf1 {[%clk 0:00:02]} 77. Rh5 {[%clk 0:00:05]}  Kd6 {[%clk 0:00:02]} 78. Rg5 {[%clk 0:00:05]}  Ke5 {[%clk 0:00:02]} 79. h7 {[%clk 0:00:05]}  Rh1 {[%clk 0:00:02]} 80. h8=Q {[%clk 0:00:05]}  Rxh8 {[%clk 0:00:03]} 81. Kxh8 {[%clk 0:00:06]}  Kf6 {[%clk 0:00:03]} 82. Rg3 {[%clk 0:00:07]}  Be6 {[%clk 0:00:01]} 83. Kh7 {[%clk 0:00:07]}  Kf5 {[%clk 0:00:02]} 84. Kh6 {[%clk 0:00:08]}  Bf7 {[%clk 0:00:02]} 85. Rg5+ {[%clk 0:00:08]}  Kf6 {[%clk 0:00:02]} 86. Rc5 {[%clk 0:00:09]}  Be8 {[%clk 0:00:02]} 87. Rc8 {[%clk 0:00:08]}  Kf5 {[%clk 0:00:03]} 88. Rxe8 {[%clk 0:00:08]}  Kg4 {[%clk 0:00:04]} 89. Rxe4+ {[%clk 0:00:08]}  Kf3 {[%clk 0:00:05]} 90. Re6 {[%clk 0:00:09]}  Ke2 {[%clk 0:00:06]} 91. Re5 {[%clk 0:00:08]}  Kd3 {[%clk 0:00:06]} 92. Re6 {[%clk 0:00:08]}  Kxc3 {[%clk 0:00:07]} 93. Rxa6 {[%clk 0:00:08]}  Kxb4 {[%clk 0:00:08]} 94. e4 {[%clk 0:00:08]}  c3 {[%clk 0:00:08]} 95. e5 {[%clk 0:00:08]}  Kc5 {[%clk 0:00:08]} 96. Ra8 {[%clk 0:00:08]}  b4 {[%clk 0:00:08]} 97. Rc8+ {[%clk 0:00:08]}  Kd5 {[%clk 0:00:08]} 98. a6 {[%clk 0:00:09]}  Kd4 {[%clk 0:00:04]} 99. a7 {[%clk 0:00:09]}  b3 {[%clk 0:00:05]} 100. a8=Q {[%clk 0:00:09]}  b2 {[%clk 0:00:06]} 101. Qa4+ {[%clk 0:00:09]}  Kd3 {[%clk 0:00:07]} 102. Rd8+ {[%clk 0:00:10]}  Ke3 {[%clk 0:00:07]} 103. Qc2 {[%clk 0:00:10]}  b1=Q {[%clk 0:00:06]} 104. Qxb1 {[%clk 0:00:10]}  Kf4 {[%clk 0:00:06]} 105. Qd3 {[%clk 0:00:09]}  c2 {[%clk 0:00:06]} 106. Rf8+ {[%clk 0:00:09]}  Kxe5 {[%clk 0:00:07]} 107. Rf5+ {[%clk 0:00:10]}  Ke6 {[%clk 0:00:07]} 108. Qd5+ {[%clk 0:00:11]}  Ke7 {[%clk 0:00:08]} 109. Rf7+ {[%clk 0:00:12]}  Ke8 {[%clk 0:00:09]} 110. Qd7# {[%clk 0:00:13]} 1-0


[Site "https://www.chess.com"]

[Event "Titled Tuesday Blitz January 11 2022"]
[White "Sipetin, Vladislav"]
[Black "Kobalia, Mikhail"]
[WhiteFideId "24176893"]
[BlackFideId "4119150"]
[WhiteElo "2228"]
[BlackElo "2667"]
[Result "1/2-1/2"]
[Round "10"]
[TimeControl "180+1"]
[Date "2022.01.11"]
[WhiteClock "0:00:12"]
[BlackClock "0:00:18"]

1. e4 {[%clk 0:03:00]}  c5 {[%clk 0:02:54]} 2. c3 {[%clk 0:02:59]}  Nf6 {[%clk 0:02:53]} 3. e5 {[%clk 0:02:59]}  Nd5 {[%clk 0:02:53]} 4. d4 {[%clk 0:03:00]}  cxd4 {[%clk 0:02:52]} 5. Nf3 {[%clk 0:03:01]}  e6 {[%clk 0:02:52]} 6. cxd4 {[%clk 0:03:01]}  d6 {[%clk 0:02:51]} 7. Bd3 {[%clk 0:03:00]}  dxe5 {[%clk 0:02:49]} 8. dxe5 {[%clk 0:03:01]}  Nb4 {[%clk 0:02:47]} 9. Bb5+ {[%clk 0:02:46]}  Bd7 {[%clk 0:02:47]} 10. Bxd7+ {[%clk 0:02:45]}  Qxd7 {[%clk 0:02:45]} 11. Nc3 {[%clk 0:02:32]}  Qxd1+ {[%clk 0:02:44]} 12. Kxd1 {[%clk 0:02:33]}  N8c6 {[%clk 0:02:43]} 13. Be3 {[%clk 0:02:28]}  O-O-O+ {[%clk 0:02:39]} 14. Ke2 {[%clk 0:02:28]}  Nc2 {[%clk 0:02:39]} 15. Rad1 {[%clk 0:02:25]}  Nxe3 {[%clk 0:02:36]} 16. Rxd8+ {[%clk 0:02:24]}  Kxd8 {[%clk 0:02:36]} 17. Kxe3 {[%clk 0:02:15]}  Bc5+ {[%clk 0:02:35]} 18. Ke2 {[%clk 0:02:16]}  Ke7 {[%clk 0:02:34]} 19. Rd1 {[%clk 0:02:10]}  a6 {[%clk 0:01:48]} 20. Ne4 {[%clk 0:02:08]}  Ba7 {[%clk 0:01:46]} 21. a3 {[%clk 0:02:03]}  h6 {[%clk 0:01:43]} 22. b4 {[%clk 0:01:55]}  Bb8 {[%clk 0:01:10]} 23. Nc5 {[%clk 0:01:48]}  Rd8 {[%clk 0:00:59]} 24. Nxb7 {[%clk 0:01:42]}  Rxd1 {[%clk 0:00:57]} 25. Kxd1 {[%clk 0:01:43]}  Nxe5 {[%clk 0:00:56]} 26. Nxe5 {[%clk 0:01:43]}  Bxe5 {[%clk 0:00:55]} 27. Nc5 {[%clk 0:01:43]}  Bd4 {[%clk 0:00:46]} 28. Nxa6 {[%clk 0:01:29]}  Bxf2 {[%clk 0:00:45]} 29. a4 {[%clk 0:01:29]}  Kd6 {[%clk 0:00:44]} 30. Ke2 {[%clk 0:01:26]}  Bg1 {[%clk 0:00:44]} 31. h3 {[%clk 0:01:24]}  f5 {[%clk 0:00:44]} 32. b5 {[%clk 0:01:20]}  Bb6 {[%clk 0:00:43]} 33. Nb4 {[%clk 0:01:16]}  e5 {[%clk 0:00:39]} 34. Nc6 {[%clk 0:01:13]}  e4 {[%clk 0:00:28]} 35. a5 {[%clk 0:01:12]}  Bc5 {[%clk 0:00:28]} 36. a6 {[%clk 0:01:04]}  Kc7 {[%clk 0:00:28]} 37. h4 {[%clk 0:00:57]}  g5 {[%clk 0:00:27]} 38. h5 {[%clk 0:00:54]}  Kb6 {[%clk 0:00:26]} 39. Ne5 {[%clk 0:00:53]}  Kxb5 {[%clk 0:00:24]} 40. Nf7 {[%clk 0:00:47]}  Kxa6 {[%clk 0:00:24]} 41. Nxh6 {[%clk 0:00:45]}  f4 {[%clk 0:00:24]} 42. Ng4 {[%clk 0:00:23]}  Bd4 {[%clk 0:00:23]} 43. Nf2 {[%clk 0:00:17]}  e3 {[%clk 0:00:18]} 44. Nh3 {[%clk 0:00:17]}  Bf6 {[%clk 0:00:18]} 45. h6 {[%clk 0:00:16]}  Kb5 {[%clk 0:00:18]} 46. h7 {[%clk 0:00:17]}  Kc4 {[%clk 0:00:18]} 47. Nxg5 {[%clk 0:00:16]}  Kd5 {[%clk 0:00:18]} 48. Nf7 {[%clk 0:00:14]}  Ke6 {[%clk 0:00:18]} 49. h8=Q {[%clk 0:00:09]}  Bxh8 {[%clk 0:00:18]} 50. Nxh8 {[%clk 0:00:10]}  Kf6 {[%clk 0:00:18]} 51. g3 {[%clk 0:00:10]}  fxg3 {[%clk 0:00:18]} 52. Kxe3 {[%clk 0:00:10]}  Kg7 {[%clk 0:00:19]} 53. Kf3 {[%clk 0:00:10]}  Kxh8 {[%clk 0:00:19]} 54. Kg2 {[%clk 0:00:11]}  Kg8 {[%clk 0:00:18]} 55. Kxg3 {[%clk 0:00:12]} 1/2-1/2


[Site "https://www.chess.com"]

[Event "Titled Tuesday Blitz January 11 2022"]
[White "Terry, Renato"]
[Black "Ezat, Mohamed"]
[WhiteFideId "3803457"]
[BlackFideId "10600906"]
[WhiteElo "2577"]
[BlackElo "2386"]
[Result "1-0"]
[Round "10"]
[TimeControl "180+1"]
[Date "2022.01.11"]
[WhiteClock "0:00:03"]
[BlackClock "0:00:01"]

1. e4 {[%clk 0:03:00]}  c6 {[%clk 0:02:59]} 2. Nf3 {[%clk 0:03:00]}  d5 {[%clk 0:03:00]} 3. exd5 {[%clk 0:03:01]}  cxd5 {[%clk 0:03:00]} 4. Ne5 {[%clk 0:03:01]}  Nc6 {[%clk 0:02:58]} 5. d4 {[%clk 0:03:02]}  Nf6 {[%clk 0:02:57]} 6. c3 {[%clk 0:03:01]}  e6 {[%clk 0:02:54]} 7. Bd3 {[%clk 0:03:01]}  Bd6 {[%clk 0:02:54]} 8. f4 {[%clk 0:02:58]}  O-O {[%clk 0:02:54]} 9. Qe2 {[%clk 0:02:57]}  Qc7 {[%clk 0:02:47]} 10. O-O {[%clk 0:02:57]}  b6 {[%clk 0:02:45]} 11. Nd2 {[%clk 0:02:51]}  Bb7 {[%clk 0:02:45]} 12. Rf3 {[%clk 0:02:52]}  Ne7 {[%clk 0:02:43]} 13. Rh3 {[%clk 0:02:48]}  Ng6 {[%clk 0:02:41]} 14. g3 {[%clk 0:02:32]}  Rae8 {[%clk 0:02:39]} 15. Qf3 {[%clk 0:02:05]}  Re7 {[%clk 0:02:14]} 16. g4 {[%clk 0:02:04]}  Rfe8 {[%clk 0:02:14]} 17. g5 {[%clk 0:02:04]}  Ne4 {[%clk 0:02:13]} 18. Nxe4 {[%clk 0:02:02]}  dxe4 {[%clk 0:02:13]} 19. Bxe4 {[%clk 0:02:03]}  Bxe4 {[%clk 0:02:10]} 20. Qxe4 {[%clk 0:02:03]}  f5 {[%clk 0:02:00]} 21. gxf6 {[%clk 0:01:55]}  gxf6 {[%clk 0:01:59]} 22. Nxg6 {[%clk 0:01:56]}  hxg6 {[%clk 0:01:58]} 23. Be3 {[%clk 0:01:53]}  Rg7 {[%clk 0:01:50]} 24. Kh1 {[%clk 0:01:43]}  Qc4 {[%clk 0:01:47]} 25. Bd2 {[%clk 0:01:07]}  Qd5 {[%clk 0:01:44]} 26. Re3 {[%clk 0:01:01]}  Kf7 {[%clk 0:01:30]} 27. Rae1 {[%clk 0:00:58]}  Rh8 {[%clk 0:01:22]} 28. c4 {[%clk 0:00:32]}  Qxe4+ {[%clk 0:01:09]} 29. Rxe4 {[%clk 0:00:33]}  Rgh7 {[%clk 0:01:09]} 30. R1e2 {[%clk 0:00:27]}  Re8 {[%clk 0:00:43]} 31. d5 {[%clk 0:00:20]}  e5 {[%clk 0:00:32]} 32. fxe5 {[%clk 0:00:18]}  fxe5 {[%clk 0:00:33]} 33. Rf2+ {[%clk 0:00:17]}  Kg8 {[%clk 0:00:33]} 34. Kg2 {[%clk 0:00:15]}  Rh5 {[%clk 0:00:29]} 35. Rfe2 {[%clk 0:00:13]}  Rf5 {[%clk 0:00:26]} 36. Be1 {[%clk 0:00:13]}  Ref8 {[%clk 0:00:21]} 37. Bg3 {[%clk 0:00:14]}  Re8 {[%clk 0:00:18]} 38. b3 {[%clk 0:00:15]}  Kf7 {[%clk 0:00:18]} 39. Rh4 {[%clk 0:00:15]}  Kg7 {[%clk 0:00:17]} 40. Rg4 {[%clk 0:00:16]}  Kf7 {[%clk 0:00:16]} 41. Rge4 {[%clk 0:00:16]}  Kg7 {[%clk 0:00:16]} 42. Re1 {[%clk 0:00:14]}  a6 {[%clk 0:00:13]} 43. Rh4 {[%clk 0:00:13]}  g5 {[%clk 0:00:12]} 44. Rhe4 {[%clk 0:00:13]}  Kg6 {[%clk 0:00:12]} 45. R1e2 {[%clk 0:00:12]}  b5 {[%clk 0:00:09]} 46. Bf2 {[%clk 0:00:12]}  bxc4 {[%clk 0:00:09]} 47. bxc4 {[%clk 0:00:13]}  Rc8 {[%clk 0:00:08]} 48. Bg3 {[%clk 0:00:13]}  Rc7 {[%clk 0:00:08]} 49. Rb2 {[%clk 0:00:14]}  Rf6 {[%clk 0:00:05]} 50. Rb6 {[%clk 0:00:13]}  a5 {[%clk 0:00:04]} 51. Ra6 {[%clk 0:00:12]}  Rb7 {[%clk 0:00:04]} 52. Re2 {[%clk 0:00:10]}  Bc5 {[%clk 0:00:03]} 53. Rxa5 {[%clk 0:00:04]}  Bd4 {[%clk 0:00:02]} 54. Ra8 {[%clk 0:00:03]}  Kf5 {[%clk 0:00:01]} 55. Rg8 {[%clk 0:00:03]}  Kg4 {[%clk 0:00:01]} 56. h3+ {[%clk 0:00:02]}  Kf5 {[%clk 0:00:02]} 57. Rc8 {[%clk 0:00:02]}  Kg6 {[%clk 0:00:02]} 58. Rc6 {[%clk 0:00:02]}  Rb1 {[%clk 0:00:02]} 59. Rxf6+ {[%clk 0:00:02]}  Kxf6 {[%clk 0:00:01]} 60. Rc2 {[%clk 0:00:03]} 1-0


[Site "https://www.chess.com"]

[Event "Titled Tuesday Blitz January 11 2022"]
[White "Triapishko, Alexandr"]
[Black "Lysyj, Igor"]
[WhiteFideId "14122286"]
[BlackFideId "4150120"]
[WhiteElo "2479"]
[BlackElo "2611"]
[Result "0-1"]
[Round "10"]
[TimeControl "180+1"]
[Date "2022.01.11"]
[WhiteClock "0:00:01"]
[BlackClock "0:00:10"]

1. Nf3 {[%clk 0:02:37]}  Nf6 {[%clk 0:02:57]} 2. g3 {[%clk 0:02:11]}  d5 {[%clk 0:02:56]} 3. Bg2 {[%clk 0:02:11]}  e6 {[%clk 0:02:56]} 4. O-O {[%clk 0:02:10]}  Be7 {[%clk 0:02:57]} 5. d3 {[%clk 0:02:10]}  O-O {[%clk 0:02:57]} 6. Bf4 {[%clk 0:02:11]}  b6 {[%clk 0:02:55]} 7. e4 {[%clk 0:02:11]}  dxe4 {[%clk 0:02:52]} 8. dxe4 {[%clk 0:02:11]}  Bb7 {[%clk 0:02:52]} 9. Qxd8 {[%clk 0:02:06]}  Rxd8 {[%clk 0:02:50]} 10. Bxc7 {[%clk 0:01:46]}  Rc8 {[%clk 0:02:50]} 11. Bxb8 {[%clk 0:01:47]}  Raxb8 {[%clk 0:02:50]} 12. c3 {[%clk 0:01:47]}  Bxe4 {[%clk 0:02:48]} 13. Nbd2 {[%clk 0:01:45]}  Ba8 {[%clk 0:02:47]} 14. Ne5 {[%clk 0:01:42]}  Bxg2 {[%clk 0:02:44]} 15. Kxg2 {[%clk 0:01:43]}  Rc7 {[%clk 0:02:38]} 16. Rfd1 {[%clk 0:01:43]}  Nd5 {[%clk 0:02:35]} 17. Ndf3 {[%clk 0:01:32]}  f6 {[%clk 0:02:33]} 18. Nd3 {[%clk 0:01:30]}  Kf7 {[%clk 0:02:21]} 19. Nd4 {[%clk 0:01:21]}  b5 {[%clk 0:02:20]} 20. Rac1 {[%clk 0:01:15]}  Bf8 {[%clk 0:02:08]} 21. Nxb5 {[%clk 0:01:02]}  Rxb5 {[%clk 0:01:50]} 22. c4 {[%clk 0:00:58]}  Ra5 {[%clk 0:01:48]} 23. cxd5 {[%clk 0:00:58]}  Rxc1 {[%clk 0:01:45]} 24. dxe6+ {[%clk 0:00:59]}  Kxe6 {[%clk 0:01:44]} 25. Nxc1 {[%clk 0:00:59]}  Bd6 {[%clk 0:01:37]} 26. Rd3 {[%clk 0:00:51]}  f5 {[%clk 0:01:31]} 27. Kf3 {[%clk 0:00:38]}  g5 {[%clk 0:01:20]} 28. h3 {[%clk 0:00:38]}  h5 {[%clk 0:01:18]} 29. a3 {[%clk 0:00:36]}  g4+ {[%clk 0:01:17]} 30. hxg4 {[%clk 0:00:36]}  hxg4+ {[%clk 0:01:12]} 31. Ke2 {[%clk 0:00:32]}  Be5 {[%clk 0:01:11]} 32. Re3 {[%clk 0:00:18]}  Kd5 {[%clk 0:01:01]} 33. Nd3 {[%clk 0:00:17]}  Bd6 {[%clk 0:01:00]} 34. Re8 {[%clk 0:00:14]}  Ra4 {[%clk 0:00:56]} 35. Kd2 {[%clk 0:00:12]}  Re4 {[%clk 0:00:53]} 36. Rd8 {[%clk 0:00:08]}  Kc6 {[%clk 0:00:48]} 37. b4 {[%clk 0:00:07]}  a6 {[%clk 0:00:33]} 38. Rg8 {[%clk 0:00:05]}  a5 {[%clk 0:00:31]} 39. bxa5 {[%clk 0:00:04]}  Ra4 {[%clk 0:00:31]} 40. Rg5 {[%clk 0:00:02]}  Rxa5 {[%clk 0:00:29]} 41. a4 {[%clk 0:00:03]}  Kd7 {[%clk 0:00:20]} 42. Nb2 {[%clk 0:00:03]}  Ke6 {[%clk 0:00:19]} 43. Nc4 {[%clk 0:00:02]}  Bb4+ {[%clk 0:00:18]} 44. Kc2 {[%clk 0:00:02]}  Rd5 {[%clk 0:00:16]} 45. Kb3 {[%clk 0:00:01]}  Be1 {[%clk 0:00:16]} 46. Rg6+ {[%clk 0:00:02]}  Kf7 {[%clk 0:00:16]} 47. Rh6 {[%clk 0:00:01]}  Bxf2 {[%clk 0:00:15]} 48. a5 {[%clk 0:00:02]}  Bxg3 {[%clk 0:00:15]} 49. a6 {[%clk 0:00:03]}  Bf2 {[%clk 0:00:15]} 50. Rh7+ {[%clk 0:00:02]}  Kg6 {[%clk 0:00:15]} 51. a7 {[%clk 0:00:03]}  Bxa7 {[%clk 0:00:14]} 52. Rxa7 {[%clk 0:00:04]}  g3 {[%clk 0:00:14]} 53. Ra8 {[%clk 0:00:02]}  f4 {[%clk 0:00:13]} 54. Kc3 {[%clk 0:00:02]}  Rg5 {[%clk 0:00:12]} 55. Kd4 {[%clk 0:00:01]}  g2 {[%clk 0:00:12]} 56. Ne5+ {[%clk 0:00:01]}  Kf5 {[%clk 0:00:10]} 0-1


[Site "https://www.chess.com"]

[Event "Titled Tuesday Blitz January 11 2022"]
[White "Wagh Suyog"]
[Black "Deac, Bogdan-Daniel"]
[WhiteFideId "25071688"]
[BlackFideId "1226380"]
[WhiteElo "2181"]
[BlackElo "2646"]
[Result "0-1"]
[Round "10"]
[TimeControl "180+1"]
[Date "2022.01.11"]
[WhiteClock "0:01:41"]
[BlackClock "0:00:25"]

1. d4 {[%clk 0:03:00]}  Nf6 {[%clk 0:02:59]} 2. c4 {[%clk 0:03:01]}  g6 {[%clk 0:02:59]} 3. Nc3 {[%clk 0:03:01]}  d5 {[%clk 0:02:56]} 4. cxd5 {[%clk 0:03:01]}  Nxd5 {[%clk 0:02:56]} 5. e4 {[%clk 0:03:02]}  Nxc3 {[%clk 0:02:57]} 6. bxc3 {[%clk 0:03:03]}  Bg7 {[%clk 0:02:57]} 7. Nf3 {[%clk 0:03:03]}  c5 {[%clk 0:02:57]} 8. Bc4 {[%clk 0:03:03]}  O-O {[%clk 0:02:55]} 9. O-O {[%clk 0:03:02]}  Bg4 {[%clk 0:02:53]} 10. Be3 {[%clk 0:03:01]}  cxd4 {[%clk 0:02:34]} 11. cxd4 {[%clk 0:02:59]}  Nc6 {[%clk 0:02:34]} 12. d5 {[%clk 0:02:50]}  Ne5 {[%clk 0:02:33]} 13. Be2 {[%clk 0:02:43]}  Nxf3+ {[%clk 0:02:30]} 14. Bxf3 {[%clk 0:02:42]}  Bxf3 {[%clk 0:02:29]} 15. gxf3 {[%clk 0:02:39]}  Bxa1 {[%clk 0:02:28]} 16. Qxa1 {[%clk 0:02:40]}  f6 {[%clk 0:02:28]} 17. Qb2 {[%clk 0:02:38]}  Qd7 {[%clk 0:02:25]} 18. Bf4 {[%clk 0:02:37]}  Rac8 {[%clk 0:02:21]} 19. Qb3 {[%clk 0:02:36]}  b6 {[%clk 0:02:10]} 20. Rd1 {[%clk 0:02:35]}  Kg7 {[%clk 0:02:02]} 21. Qe3 {[%clk 0:02:33]}  Qh3 {[%clk 0:02:01]} 22. e5 {[%clk 0:02:28]}  Qf5 {[%clk 0:00:51]} 23. Bh6+ {[%clk 0:02:27]}  Kg8 {[%clk 0:00:46]} 24. Bxf8 {[%clk 0:02:28]}  Rxf8 {[%clk 0:00:46]} 25. e6 {[%clk 0:01:51]}  Rd8 {[%clk 0:00:44]} 26. d6 {[%clk 0:01:47]}  exd6 {[%clk 0:00:42]} 27. e7 {[%clk 0:01:47]}  Re8 {[%clk 0:00:42]} 28. Rxd6 {[%clk 0:01:48]}  Kf7 {[%clk 0:00:32]} 29. Qb3+ {[%clk 0:01:40]}  Kg7 {[%clk 0:00:31]} 30. Rc6 {[%clk 0:01:41]}  Rxe7 {[%clk 0:00:26]} 31. Rc1 {[%clk 0:01:41]}  Qg5+ {[%clk 0:00:25]} 0-1


[Site "https://www.chess.com"]

[Event "Titled Tuesday Blitz January 11 2022"]
[White "Yeletsky, Ivan"]
[Black "Yoo, Christopher Woojin"]
[WhiteFideId "24180327"]
[BlackFideId "30909694"]
[WhiteElo "2348"]
[BlackElo "2105"]
[Result "0-1"]
[Round "10"]
[TimeControl "180+1"]
[Date "2022.01.11"]
[WhiteClock "0:01:01"]
[BlackClock "0:02:04"]

1. d4 {[%clk 0:02:59]}  Nf6 {[%clk 0:02:59]} 2. c4 {[%clk 0:02:59]}  e6 {[%clk 0:03:00]} 3. Nf3 {[%clk 0:02:58]}  d5 {[%clk 0:03:00]} 4. e3 {[%clk 0:02:58]}  c5 {[%clk 0:02:58]} 5. cxd5 {[%clk 0:02:56]}  exd5 {[%clk 0:02:56]} 6. Bb5+ {[%clk 0:02:55]}  Nc6 {[%clk 0:02:56]} 7. O-O {[%clk 0:02:53]}  cxd4 {[%clk 0:02:54]} 8. Nxd4 {[%clk 0:02:49]}  Bd7 {[%clk 0:02:54]} 9. Nc3 {[%clk 0:02:49]}  Bd6 {[%clk 0:02:54]} 10. Nf3 {[%clk 0:02:48]}  Ne7 {[%clk 0:02:51]} 11. b3 {[%clk 0:02:43]}  O-O {[%clk 0:02:38]} 12. Bxd7 {[%clk 0:02:43]}  Qxd7 {[%clk 0:02:39]} 13. Bb2 {[%clk 0:02:43]}  Rac8 {[%clk 0:02:38]} 14. Ne2 {[%clk 0:02:42]}  Ne4 {[%clk 0:02:37]} 15. Qd3 {[%clk 0:02:27]}  Nc5 {[%clk 0:02:31]} 16. Qd4 {[%clk 0:02:21]}  Ne6 {[%clk 0:02:28]} 17. Qg4 {[%clk 0:02:18]}  f5 {[%clk 0:02:23]} 18. Qh5 {[%clk 0:02:06]}  Rc2 {[%clk 0:02:19]} 19. Ne5 {[%clk 0:02:05]}  Qe8 {[%clk 0:02:05]} 20. Qxe8 {[%clk 0:01:11]}  Rxe8 {[%clk 0:02:06]} 21. Nd4 {[%clk 0:01:05]}  Rxb2 {[%clk 0:02:05]} 22. Nd3 {[%clk 0:01:01]}  Rd2 {[%clk 0:02:04]} 0-1


[Site "https://www.chess.com"]